{"text_format":"1","workbook":"xlsx","n_sheets":7,"sheets":["الاستعلامات","BEECH-Veneer","Cherry-WOOD","TEAK-Veneer","TEAK-WOOD","Cherry-Veneer","MAHOGANY-WOOD"],"not_rendered":{"charts":0,"images":4,"macros":1,"external_links":0,"defined_names":4,"comments":0,"pivot_tables":0},"unopened":[],"bounds":{"document_bytes":16777216,"sheet_cells":100000,"rows_first":2000,"rows_last":500,"rows_between":2000,"halvings":0,"cell_chars":16384,"cell_head_chars":4096},"cells_cut":0,"cells_raw":0,"read":"whole","date_system":"1900"}

{"sheet":"الاستعلامات","index":0,"n_rows":14,"n_cols":18,"rows_kept":14,"cut":false,"hidden":false,"merged":[[7,0,7,1],[5,3,5,4],[4,14,4,15],[4,10,4,11],[4,2,4,4]]}
[]
[]
[]
[1,"استعلام بين تارخين",null,null,5,6,7,8,9,10,11,12,13,14,15,16,17,18]
[null,"2018-03-26","الاستعلام برقم الفاتورة",null,null,null,null,null,"مسح البيانات الحالية",null,"الاستعلام رقم الاذون",null,null,null,"الاستعلام رقم PO"]
[null,"2018-05-17","رقم الفاتورة","INC-30651017",null,null,null,null,null,null,"رقم اذن استلام",244,null,null,"18-383","PO:"]
[null,"صرف","الحالة المطلوبه","وارد",null,null,null,null,null,null,"رقم اذن صرف",57]
["    عمليات الفلتره "]
[null,null,null,null,{"$f":"SUBTOTAL(9,E11:E40)","v":-243.20299999999997},{"$f":"SUBTOTAL(9,F11:F40)","v":-21239.45},null,null,{"$f":"SUBTOTAL(9,I11:I40)","v":-1061.9725000000001},-22301.422500000001]
["الحالة","الصنف","الوحدة","السعر","الكمية","الاجمالى","الخصم","الاجمالى بعد الخصم","VAT 5%","الاجمالى","اسم المشروع","PO","من مخزن","الفئة","استلام","صرف","الفاتورة","التاريخ"]
["صرف","AMERICAN SHERI BLACK WOOD 2\"","M3",5800,-1.0660000000000001,-6182.8,0,6182.8,-309.14,-6491.94,"الرازيات","18-092","Cherry-WOOD","خشب شيري",null,103,"INC-30651017","2018-03-27"]
["صرف","تيك مجفف 3\"","M3",5300,-4.2999999999999997E-2,-227.9,0,227.89999999999998,-11.395,-239.29499999999999,"غيانات","SAM","TEAK-WOOD","خشب شيري",null,53,"01-22022","2018-04-14"]
["صرف","خشب ايروكو 2\" (خشب تيك)","M3",4250,-2.6440000000000001,-11237,0,11237,-561.85,-11798.85,"غيانات","18-283","TEAK-WOOD","خشب شيري",null,259,57,"2018-05-17"]
["صرف","قشرة شري مفجر","M2",15,-239.45,-3591.75,0,3591.75,-179.58750000000001,-3771.3375000000001,"الرازيات","18-092","Cherry-Veneer","قشرة شري",null,8,57,"2018-03-26"]

{"sheet":"BEECH-Veneer","index":1,"n_rows":73,"n_cols":28,"rows_kept":73,"cut":false,"hidden":false,"merged":[]}
[null,null,null,null,null,null,null,null,null,null,null,null,null,null,null,{"$f":"SUMIF(Q9:Q999999,Q1,H9:H99999)","v":0},"سنديان",null,null,null,null,null,null,null,null,null,"كمية"]
[null,null,null,null,null,null,null,null,null,null,null,null,null,null,null,{"$f":"SUMIF(Q10:Q1000000,Q2,H10:H100000)","v":0},"سنديان",null,null,null,null,null,null,null,null,null,"قيمة"]
[null,null,null,null,null,null,null,null,null,null,null,null,null,null,null,{"$f":"SUMIF(Q11:Q1000001,Q3,H11:H100001)","v":0}]
[null,null,null,null,null,null,null,null,null,null,null,null,null,null,null,{"$f":"SUMIF(Q12:Q1000002,Q4,H12:H100002)","v":0}]
[]
[1,{"$f":"A6+1","v":2},{"$f":"B6+1","v":3},4,5,6,7,8,9,10,11,12,13,14,15]
[null,null,null,null,null,null,null,{"$f":"SUM(H9:H99999)","v":231.78},null,null,null,null,{"$f":"SUM(M9:M99999)","v":1581.8985},null,null,null,null,null,null,{"$f":"SUM(T9:T99999)","v":2156.3510000000001},null,null,null,null,1581.8985,null,{"$f":"H7-T7","v":-1924.5710000000001}]
[null,"الرقم التسلسلى","الحالة وارد","الحالة الصادر ","الصنف","الوحدة","السعر","الكمية","الاجمالى","الخصم","الاجمالى بعد الخصم","VAT 5%","الاجمالى","رقم الفاتورة","تاريخ الفاتورة","اسم المورد","الكود","رقم امر الاستلام","رقم اذن اصرف","الكمية الصادرة","الاجمالى","الخصم","الاجمالى بعد الخصم","VAT 5%","الاجمالى","PO","اسم المشروع","ملاحظات"]
[null,1,"وارد",null,"قشرة زان مفجر","M2",6.5,231.78,{"$f":"G9*H9","v":1506.57},0,{"$f":"I9-J9","v":1506.57},{"$f":"K9*5%","v":75.328500000000005},{"$f":"L9+K9","v":1581.8985},208,"2018-06-12","دار الوفاق","قشرة زان",179,null,null,{"$f":"T9*G9","v":0},0,{"$f":"U9-V9","v":0},{"$f":"W9*5%","v":0},{"$f":"X9+W9","v":0}]
[null,{"$f":"B9+1","v":2},null,"صرف","قشرة زان مفجر","M2",6.5,null,{"$f":"G10*H10","v":0},0,{"$f":"I10-J10","v":0},{"$f":"K10*5%","v":0},{"$f":"L10+K10","v":0},208,"2018-06-12","دار الوفاق","قشرة زان",null,232,231.78,{"$f":"T10*G10","v":1506.57},0,{"$f":"U10-V10","v":1506.57},{"$f":"W10*5%","v":75.328500000000005},{"$f":"X10+W10","v":1581.8985},"18-260","جموم"]
[null,null,null,null,null,null,null,null,null,null,null,null,0,31544,"2018-07-02","شركة غولدن فينير","قشرة زان",193,null,null,0,0,0,0,0]
[null,null,null,null,null,null,null,null,null,null,null,null,0,31544,"2018-07-02","شركة غولدن فينير","قشرة زان",null,218,1123,0,0,0,0,0,"18-260","جموم"]
[null,null,null,null,null,null,null,null,null,null,null,null,0,24,"2018-01-27","دار الوفاق","قشرة زان",199,null,null,0,0,0,0,0]
[null,null,null,null,null,null,null,null,null,null,null,null,0,57,"2018-01-27","دار الوفاق","قشرة زان",null,215,28.51,0,0,0,0,0,"00-00","بيونير"]
[null,null,null,null,null,null,null,null,null,null,null,null,0,3237,"2018-07-09","عالم الاخشاب","قشرة زان",208,null,null,0,0,0,0,0]
[null,null,null,null,null,null,null,null,null,null,null,null,0,3237,"2018-07-09","عالم الاخشاب","قشرة زان",null,262,616.37099999999998,0,0,0,0,0,"18-276","سعودي"]
[null,null,null,null,null,null,null,null,null,null,null,null,0,31668,"2018-08-02","شركة غولدن فينير","قشرة زان",216,null,null,0,0,0,0,0]
[null,null,null,null,null,null,null,null,null,null,null,null,0,31668,null,"شركة غولدن فينير","قشرة زان",null,270,156.69,0,0,0,0,0,"18-353","الماسة",28]
[null,null,null,null,null,null,null,null,null,null,null,null,0,null,null,null,"قشرة زان",null,null,null,0,0,0,0,0]
[null,null,null,null,null,null,null,null,null,null,null,null,0," ",null,null,"قشرة زان",null,null,null,0,0,0,0,0]
[null,null,null,null,null,null,null,null,null,null,null,null,0,null,null,null,"قشرة زان",null,null,null,0,0,0,0,0]
[null,null,null,null,null,null,null,null,null,null,null,null,0,null,null,null,"قشرة زان",null,null,null,0,0,0,0,0]
[null,null,null,null,null,null,null,null,null,null,null,null,0,null,null,null,"قشرة زان",null,null,null,0,0,0,0,0]
[null,null,null,null,null,null,null,null,null,null,null,null,0,null,null,null,"قشرة زان",null,null,null,0,0,0,0,0]
[null,null,null,null,null,null,null,null,null,null,null,null,0,null,null,null,"قشرة زان",null,null,null,0,0,0,0,0]
[null,null,null,null,null,null,null,null,null,null,null,null,0,null,null,null,"قشرة زان",null,null,null,0,0,0,0,0]
[null,null,null,null,null,null,null,null,null,null,null,null,0,null,null,null,"قشرة زان",null,null,null,0,0,0,0,0]
[null,null,null,null,null,null,null,null,null,null,null,null,0,null,null,null,"قشرة زان",null,null,null,0,0,0,0,0]
[null,null,null,null,null,null,null,null,null,null,null,null,0,null,null,null,"قشرة زان",null,null,null,0,0,0,0,0]
[null,null,null,null,null,null,null,null,null,null,null,null,0,null,null,null,"قشرة زان",null,null,null,0,0,0,0,0]
[null,null,null,null,null,null,null,null,null,null,null,null,0,null,null,null,"قشرة زان",null,null,null,0,0,0,0,0]
[null,null,null,null,null,null,null,null,null,null,null,null,0,null,null,null,"قشرة زان",null,null,null,0,0,0,0,0]
[null,null,null,null,null,null,null,null,null,null,null,null,0,null,null,null,"قشرة زان",null,null,null,0,0,0,0,0]
[null,null,null,null,null,null,null,null,null,null,null,null,0,null,null,null,"قشرة زان",null,null,null,0,0,0,0,0]
[null,null,null,null,null,null,null,null,null,null,null,null,0,null,null,null,"قشرة زان",null,null,null,0,0,0,0,0]
[null,null,null,null,null,null,null,null,null,null,null,null,0,null,null,null,"قشرة زان",null,null,null,0,0,0,0,0]
[null,null,null,null,null,null,null,null,null,null,null,null,0,null,null,null,"قشرة زان",null,null,null,0,0,0,0,0]
[null,null,null,null,null,null,null,null,null,null,null,null,0,null,null,null,"قشرة زان",null,null,null,0,0,0,0,0]
[null,null,null,null,null,null,null,null,null,null,null,null,0,null,null,null,"قشرة زان",null,null,null,0,0,0,0,0]
[null,null,null,null,null,null,null,null,null,null,null,null,0,null,null,null,"قشرة زان",null,null,null,0,0,0,0,0]
[null,null,null,null,null,null,null,null,null,null,null,null,0,null,null,null,"قشرة زان",null,null,null,0,0,0,0,0]
[null,null,null,null,null,null,null,null,null,null,null,null,0,null,null,null,"قشرة زان",null,null,null,0,0,0,0,0]
[null,null,null,null,null,null,null,null,null,null,null,null,0,null,null,null,"قشرة زان",null,null,null,0,0,0,0,0]
[null,null,null,null,null,null,null,null,null,null,null,null,0,null,null,null,"قشرة زان",null,null,null,0,0,0,0,0]
[null,null,null,null,null,null,null,null,null,null,null,null,0,null,null,null,"قشرة زان",null,null,null,0,0,0,0,0]
[null,null,null,null,null,null,null,null,null,null,null,null,0,null,null,null,"قشرة زان",null,null,null,0,0,0,0,0]
[null,null,null,null,null,null,null,null,null,null,null,null,0,null,null,null,"قشرة زان",null,null,null,0,0,0,0,0]
[null,null,null,null,null,null,null,null,null,null,null,null,0,null,null,null,"قشرة زان",null,null,null,0,0,0,0,0]
[null,null,null,null,null,null,null,null,null,null,null,null,0,null,null,null,"قشرة زان",null,null,null,0,0,0,0,0]
[null,null,null,null,null,null,null,null,null,null,null,null,0,null,null,null,"قشرة زان",null,null,null,0,0,0,0,0]
[null,null,null,null,null,null,null,null,null,null,null,null,0,null,null,null,"قشرة زان",null,null,null,0,0,0,0,0]
[null,null,null,null,null,null,null,null,null,null,null,null,0,null,null,null,"قشرة زان",null,null,null,0,0,0,0,0]
[null,null,null,null,null,null,null,null,null,null,null,null,0,null,null,null,"قشرة زان",null,null,null,0,0,0,0,0]
[null,null,null,null,null,null,null,null,null,null,null,null,0,null,null,null,"قشرة زان",null,null,null,0,0,0,0,0]
[null,null,null,null,null,null,null,null,null,null,null,null,0,null,null,null,"قشرة زان",null,null,null,0,0,0,0,0]
[null,null,null,null,null,null,null,null,null,null,null,null,0,null,null,null,"قشرة زان",null,null,null,0,0,0,0,0]
[null,null,null,null,null,null,null,null,null,null,null,null,0,null,null,null,"قشرة زان",null,null,null,0,0,0,0,0]
[null,null,null,null,null,null,null,null,null,null,null,null,0,null,null,null,"قشرة زان",null,null,null,0,0,0,0,0]
[null,null,null,null,null,null,null,null,null,null,null,null,0,null,null,null,"قشرة زان",null,null,null,0,0,0,0,0]
[null,null,null,null,null,null,null,null,null,null,null,null,0,null,null,null,"قشرة زان",null,null,null,0,0,0,0,0]
[null,null,null,null,null,null,null,null,null,null,null,null,0,null,null,null,"قشرة زان",null,null,null,0,0,0,0,0]
[null,null,null,null,null,null,null,null,null,null,null,null,0,null,null,null,"قشرة زان",null,null,null,0,0,0,0,0]
[null,null,null,null,null,null,null,null,null,null,null,null,0,null,null,null,"قشرة زان",null,null,null,0,0,0,0,0]
[null,null,null,null,null,null,null,null,null,null,null,null,0,null,null,null,"قشرة زان",null,null,null,0,0,0,0,0]
[null,null,null,null,null,null,null,null,null,null,null,null,0,null,null,null,"قشرة زان",null,null,null,0,0,0,0,0]
[null,null,null,null,null,null,null,null,null,null,null,null,0,null,null,null,"قشرة زان",null,null,null,0,0,0,0,0]
[null,null,null,null,null,null,null,null,null,null,null,null,0,null,null,null,"قشرة زان",null,null,null,0,0,0,0,0]
[null,null,null,null,null,null,null,null,null,null,null,null,0,null,null,null,"قشرة زان",null,null,null,0,0,0,0,0]
[null,null,null,null,null,null,null,null,null,null,null,null,0,null,null,null,"قشرة زان",null,null,null,0,0,0,0,0]
[null,null,null,null,null,null,null,null,null,null,null,null,0,null,null,null,"قشرة زان",null,null,null,0,0,0,0,0]
[null,null,null,null,null,null,null,null,null,null,null,null,0,null,null,null,"قشرة زان",null,null,null,0,0,0,0,0]
[null,null,null,null,null,null,null,null,null,null,null,null,0,null,null,null,"قشرة زان",null,null,null,0,0,0,0,0]
[null,null,null,null,null,null,null,null,null,null,null,null,0,null,null,null,"قشرة زان",null,null,null,0,0,0,0,0]

{"sheet":"Cherry-WOOD","index":2,"n_rows":74,"n_cols":28,"rows_kept":74,"cut":false,"hidden":false,"merged":[]}
[null,null,null,null,null,null,null,null,null,null,null,null,null,null,null,{"$f":"SUMIF(Q10:Q1000000,Q1,H10:H100000)","v":0},"سنديان",null,null,null,null,null,null,null,null,null,"كمية"]
[null,null,null,null,null,null,null,null,null,null,null,null,null,null,null,{"$f":"SUMIF(Q11:Q1000001,Q2,H11:H100001)","v":0},"سنديان",null,null,null,null,null,null,null,null,null,"قيمة"]
[null,null,null,null,null,null,null,null,null,null,null,null,null,null,null,{"$f":"SUMIF(Q12:Q1000002,Q3,H12:H100002)","v":0}]
[null,null,null,null,null,null,null,null,null,null,null,null,null,null,null,{"$f":"SUMIF(Q13:Q1000003,Q4,H13:H100003)","v":0}]
[]
[]
[null,null,null,null,null,null,null,{"$f":"SUM(H10:H100000)","v":0},null,null,null,null,{"$f":"SUM(M10:M100000)","v":0},null,null,null,null,null,null,{"$f":"SUM(T10:T100000)","v":1.0660000000000001},null,null,null,null,6491.9400000000005]
[null,"الرقم التسلسلى","الحالة وارد","الحالة الصادر ","الصنف","الوحدة","السعر","الكمية","الاجمالى","الخصم","الاجمالى بعد الخصم","VAT 5%","الاجمالى","رقم الفاتورة","تاريخ الفاتورة","اسم المورد","الكود","رقم امر الاستلام","رقم اذن اصرف","الكمية الصادرة","الاجمالى","الخصم","الاجمالى بعد الخصم","VAT 5%","الاجمالى","PO","اسم المشروع","ملاحظات"]
[null,1,"وارد",null,"AMERICAN SHERI BLACK WOOD 2\"","M3",5800,1.0660000000000001,{"$f":"G9*H9","v":6182.8},0,{"$f":"I9-J9","v":6182.8},{"$f":"K9*5%","v":309.14000000000004},{"$f":"L9+K9","v":6491.9400000000005},"INC-30651017","2018-03-27","شركة مدار لمواد البناء","خشب شيري",116,null,null,{"$f":"T9*G9","v":0},0,{"$f":"U9-V9","v":0},{"$f":"W9*5%","v":0},{"$f":"X9+W9","v":0}]
[null,{"$f":"B9+1","v":2},null,"صرف","AMERICAN SHERI BLACK WOOD 2\"","M3",5800,null,0,0,0,0,0,"INC-30651017","2018-03-27","شركة مدار لمواد البناء","خشب شيري",null,103,1.0660000000000001,6182.8,0,6182.8,309.14000000000004,6491.9400000000005,"18-092","الرازيات"]
[null,{"$f":"B10+1","v":3},null,null,null,"M3",null,null,0,0,0,0,0,null,null,null,"خشب شيري",null,null,null,0,0,0,0,0]
[null,4,null,null,null,"M3",null,null,0,0,0,0,0,null,null,null,"خشب شيري",null,null,null,0,0,0,0,0]
[null,5,null,null,null,"M3",null,null,0,0,0,0,0,null,null,null,"خشب شيري",null,null,null,0,0,0,0,0]
[null,6,null,null,null,"M3",null,null,0,0,0,0,0,null,null,null,"خشب شيري",null,null,null,0,0,0,0,0]
[null,7,null,null,null,"M3",null,null,0,0,0,0,0,null,null,null,"خشب شيري",null,null,null,0,0,0,0,0]
[null,8,null,null,null,"M3",null,null,0,0,0,0,0,null,null,null,"خشب شيري",null,null,null,0,0,0,0,0]
[null,9,null,null,null,"M3",null,null,0,0,0,0,0,null,null,null,"خشب شيري",null,null,null,0,0,0,0,0]
[null,10,null,null,null,"M3",null,null,0,0,0,0,0,null,null,null,"خشب شيري",null,null,null,0,0,0,0,0]
[null,11,null,null,null,"M3",null,null,0,0,0,0,0,null,null,null,"خشب شيري",null,null,null,0,0,0,0,0]
[null,12,null,null,null,"M3",null,null,0,0,0,0,0,null,null,null,"خشب شيري",null,null,null,0,0,0,0,0]
[null,13,null,null,null,"M3",null,null,0,0,0,0,0,null,null,null,"خشب شيري",null,null,null,0,0,0,0,0]
[null,14,null,null,null,"M3",null,null,0,0,0,0,0,null,null,null,"خشب شيري",null,null,null,0,0,0,0,0]
[null,15,null,null,null,"M3",null,null,0,0,0,0,0,null,null,null,"خشب شيري",null,null,null,0,0,0,0,0]
[null,{"$f":"B23+1","v":16},null,null,null,"M3",null,null,0,0,0,0,0,null,null,null,"خشب شيري",null,null,null,0,0,0,0,0]
[null,{"$f":"B24+1","v":17},null,null,null,"M3",null,null,0,0,0,0,0,null,null,null,"خشب شيري",null,null,null,0,0,0,0,0]
[null,18,null,null,null,"M3",null,null,0,0,0,0,0,null,null,null,"خشب شيري",null,null,null,0,0,0,0,0]
[null,19,null,null,null,"M3",null,null,0,0,0,0,0,null,null,null,"خشب شيري",null,null,null,0,0,0,0,0]
[null,20,null,null,null,"M3",null,null,0,0,0,0,0,null,null,null,"خشب شيري",null,null,null,0,0,0,0,0]
[null,21,null,null,null,"M3",null,null,0,0,0,0,0,null,null,null,"خشب شيري",null,null,null,0,0,0,0,0]
[null,22,null,null,null,"M3",null,null,0,0,0,0,0,null,null,null,"خشب شيري",null,null,null,0,0,0,0,0]
[null,23,null,null,null,"M3",null,null,0,0,0,0,0,null,null,null,"خشب شيري",null,null,null,0,0,0,0,0]
[null,24,null,null,null,"M3",null,null,0,0,0,0,0,null,null,null,"خشب شيري",null,null,null,0,0,0,0,0]
[null,25,null,null,null,"M3",null,null,0,0,0,0,0,null,null,null,"خشب شيري",null,null,null,0,0,0,0,0]
[null,26,null,null,null,"M3",null,null,0,0,0,0,0,null,null,null,"خشب شيري",null,null,null,0,0,0,0,0]
[null,27,null,null,null,"M3",null,null,0,0,0,0,0,null,null,null,"خشب شيري",null,null,null,0,0,0,0,0]
[null,28,null,null,null,"M3",null,null,0,0,0,0,0,null,null,null,"خشب شيري",null,null,null,0,0,0,0,0]
[null,29,null,null,null,"M3",null,null,0,0,0,0,0,null,null,null,"خشب شيري",null,null,null,0,0,0,0,0]
[null,30,null,null,null,"M3",null,null,0,0,0,0,0,null,null,null,"خشب شيري",null,null,null,0,0,0,0,0]
[null,31,null,null,null,"M3",null,null,0,0,0,0,0,null,null,null,"خشب شيري",null,null,null,0,0,0,0,0]
[null,32,null,null,null,"M3",null,null,0,0,0,0,0,null,null,null,"خشب شيري",null,null,null,0,0,0,0,0]
[null,33,null,null,null,"M3",null,null,0,0,0,0,0,null,null,null,"خشب شيري",null,null,null,0,0,0,0,0]
[null,34,null,null,null,"M3",null,null,0,0,0,0,0,null,null,null,"خشب شيري",null,null,null,0,0,0,0,0]
[null,35,null,null,null,"M3",null,null,0,0,0,0,0,null,null,null,"خشب شيري",null,null,null,0,0,0,0,0]
[null,36,null,null,null,"M3",null,null,0,0,0,0,0,null,null,null,"خشب شيري",null,null,null,0,0,0,0,0]
[null,37,null,null,null,"M3",null,null,0,0,0,0,0,null,null,null,"خشب شيري",null,null,null,0,0,0,0,0]
[null,38,null,null,null,"M3",null,null,0,0,0,0,0,null,null,null,"خشب شيري",null,null,null,0,0,0,0,0]
[null,39,null,null,null,"M3",null,null,0,0,0,0,0,null,null,null,"خشب شيري",null,null,null,0,0,0,0,0]
[null,40,null,null,null,"M3",null,null,0,0,0,0,0,null,null,null,"خشب شيري",null,null,null,0,0,0,0,0]
[null,41,null,null,null,"M3",null,null,0,0,0,0,0,null,null,null,"خشب شيري",null,null,null,0,0,0,0,0]
[null,42,null,null,null,"M3",null,null,0,0,0,0,0,null,null,null,"خشب شيري",null,null,null,0,0,0,0,0]
[null,43,null,null,null,"M3",null,null,0,0,0,0,0,null,null,null,"خشب شيري",null,null,null,0,0,0,0,0]
[null,44,null,null,null,"M3",null,null,0,0,0,0,0,null,null,null,"خشب شيري",null,null,null,0,0,0,0,0]
[null,45,null,null,null,"M3",null,null,0,0,0,0,0,null,null,null,"خشب شيري",null,null,null,0,0,0,0,0]
[null,46,null,null,null,"M3",null,null,0,0,0,0,0,null,null,null,"خشب شيري",null,null,null,0,0,0,0,0]
[null,47,null,null,null,"M3",null,null,0,0,0,0,0,null,null,null,"خشب شيري",null,null,null,0,0,0,0,0]
[null,48,null,null,null,"M3",null,null,0,0,0,0,0,null,null,null,"خشب شيري",null,null,null,0,0,0,0,0]
[null,49,null,null,null,"M3",null,null,0,0,0,0,0,null,null,null,"خشب شيري",null,null,null,0,0,0,0,0]
[null,50,null,null,null,"M3",null,null,0,0,0,0,0,null,null,null,"خشب شيري",null,null,null,0,0,0,0,0]
[null,51,null,null,null,"M3",null,null,0,0,0,0,0,null,null,null,"خشب شيري",null,null,null,0,0,0,0,0]
[null,52,null,null,null,"M3",null,null,0,0,0,0,0,null,null,null,"خشب شيري",null,null,null,0,0,0,0,0]
[null,53,null,null,null,"M3",null,null,0,0,0,0,0,null,null,null,"خشب شيري",null,null,null,0,0,0,0,0]
[null,54,null,null,null,"M3",null,null,0,0,0,0,0,null,null,null,"خشب شيري",null,null,null,0,0,0,0,0]
[null,55,null,null,null,"M3",null,null,0,0,0,0,0,null,null,null,"خشب شيري",null,null,null,0,0,0,0,0]
[null,56,null,null,null,"M3",null,null,0,0,0,0,0,null,null,null,"خشب شيري",null,null,null,0,0,0,0,0]
[null,57,null,null,null,"M3",null,null,0,0,0,0,0,null,null,null,"خشب شيري",null,null,null,0,0,0,0,0]
[null,58,null,null,null,"M3",null,null,0,0,0,0,0,null,null,null,"خشب شيري",null,null,null,0,0,0,0,0]
[null,59,null,null,null,"M3",null,null,0,0,0,0,0,null,null,null,"خشب شيري",null,null,null,0,0,0,0,0]
[null,60,null,null,null,"M3",null,null,0,0,0,0,0,null,null,null,"خشب شيري",null,null,null,0,0,0,0,0]
[null,61,null,null,null,"M3",null,null,0,0,0,0,0,null,null,null,"خشب شيري",null,null,null,0,0,0,0,0]
[null,62,null,null,null,"M3",null,null,0,0,0,0,0,null,null,null,"خشب شيري",null,null,null,0,0,0,0,0]
[null,63,null,null,null,"M3",null,null,0,0,0,0,0,null,null,null,"خشب شيري",null,null,null,0,0,0,0,0]
[null,64,null,null,null,"M3",null,null,0,0,0,0,0,null,null,null,"خشب شيري",null,null,null,0,0,0,0,0]
[null,65,null,null,null,"M3",null,null,{"$f":"G73*H73","v":0},0,{"$f":"I73-J73","v":0},{"$f":"K73*5%","v":0},{"$f":"L73+K73","v":0},null,null,null,"خشب شيري",null,null,null,{"$f":"T73*G73","v":0},0,{"$f":"U73-V73","v":0},{"$f":"W73*5%","v":0},{"$f":"X73+W73","v":0}]
[null,66,null,null,null,"M3",null,null,{"$f":"G74*H74","v":0},0,{"$f":"I74-J74","v":0},{"$f":"K74*5%","v":0},{"$f":"L74+K74","v":0},null,null,null,"خشب شيري",null,null,null,{"$f":"T74*G74","v":0},0,{"$f":"U74-V74","v":0},{"$f":"W74*5%","v":0},{"$f":"X74+W74","v":0}]

{"sheet":"TEAK-Veneer","index":3,"n_rows":73,"n_cols":28,"rows_kept":73,"cut":false,"hidden":false,"merged":[]}
[null,null,null,null,null,null,null,null,null,null,null,null,null,null,null,{"$f":"SUMIF(Q9:Q999999,Q1,H9:H99999)","v":0},"سنديان",null,null,null,null,null,null,null,null,null,"كمية"]
[null,null,null,null,null,null,null,null,null,null,null,null,null,null,null,{"$f":"SUMIF(Q10:Q1000000,Q2,H10:H100000)","v":0},"سنديان",null,null,null,null,null,null,null,null,null,"قيمة"]
[null,null,null,null,null,null,null,null,null,null,null,null,null,null,null,{"$f":"SUMIF(Q11:Q1000001,Q3,H11:H100001)","v":0}]
[null,null,null,null,null,null,null,null,null,null,null,null,null,null,null,{"$f":"SUMIF(Q12:Q1000002,Q4,H12:H100002)","v":0}]
[]
[]
[null,null,null,null,null,null,null,{"$f":"SUM(H9:H99999)","v":263.06200000000001},null,null,null,null,{"$f":"SUM(M9:M99999)","v":3569.4708000000001},null,null,null,null,null,null,{"$f":"SUM(T9:T99999)","v":141.68600000000001},null,null,null,null,1912.6884,null,{"$f":"H7-T7","v":121.376}]
[null,"الرقم التسلسلى","الحالة وارد","الحالة الصادر ","الصنف","الوحدة","السعر","الكمية","الاجمالى","الخصم","الاجمالى بعد الخصم","VAT 5%","الاجمالى","رقم الفاتورة","تاريخ الفاتورة","اسم المورد","الكود","رقم امر الاستلام","رقم اذن اصرف","الكمية الصادرة","الاجمالى","الخصم","الاجمالى بعد الخصم","VAT 5%","الاجمالى","PO","اسم المشروع","ملاحظات"]
[null,1,"وارد",null,"قشرة روكو (تيك)","M2",13,121.376,{"$f":"G9*H9","v":1577.8880000000001},0,{"$f":"I9-J9","v":1577.8880000000001},{"$f":"K9*5%","v":78.894400000000019},{"$f":"L9+K9","v":1656.7824000000001},2481,null,"عالم الاخشاب","قشرة تيك",184,null,null,{"$f":"T9*G9","v":0},0,{"$f":"U9-V9","v":0},{"$f":"W9*5%","v":0},{"$f":"X9+W9","v":0}]
[null,{"$f":"B9+1","v":2},null,"صرف","قشرة روكو (تيك)","M2",13,121.376,{"$f":"G10*H10","v":1577.8880000000001},0,{"$f":"I10-J10","v":1577.8880000000001},{"$f":"K10*5%","v":78.894400000000019},{"$f":"L10+K10","v":1656.7824000000001},57,null,"عالم الاخشاب","قشرة تيك",184,259,121.376,1577.8880000000001,0,{"$f":"U10-V10","v":1577.8880000000001},{"$f":"W10*5%","v":78.894400000000019},{"$f":"X10+W10","v":1656.7824000000001},"18-283","عينات"]
[null,{"$f":"B10+1","v":3},"وارد",null,"قشرة روكو (تيك)","M2",12,20.309999999999999,{"$f":"G11*H11","v":243.71999999999997},0,{"$f":"I11-J11","v":243.71999999999997},{"$f":"K11*5%","v":12.186},{"$f":"L11+K11","v":255.90599999999998},305,"2018-08-18","دار الوفاق","قشرة تيك",181,null,null,0,0,0,0,0]
[null,4,null,"صرف","قشرة روكو (تيك)","M2",12,null,0,0,0,0,0,305,null,null,"قشرة تيك",null,275,20.309999999999999,243.71999999999997,0,243.71999999999997,12.186,255.90599999999998,"18-356","بن دايل"]
[null,5,null,null,null,"M2",null,null,0,0,0,0,0,null,null,null,"قشرة تيك",null,null,null,0,0,0,0,0]
[null,6,null,null,null,"M2",null,null,0,0,0,0,0,null,null,null,"قشرة تيك",null,null,null,0,0,0,0,0]
[null,7,null,null,null,"M2",null,null,0,0,0,0,0,null,null,null,"قشرة تيك",null,null,null,0,0,0,0,0]
[null,8,null,null,null,"M2",null,null,0,0,0,0,0,null,null,null,"قشرة تيك",null,null,null,0,0,0,0,0]
[null,9,null,null,null,"M2",null,null,0,0,0,0,0,null,null,null,"قشرة تيك",null,null,null,0,0,0,0,0]
[null,10,null,null,null,"M2",null,null,0,0,0,0,0,null,null,null,"قشرة تيك",null,null,null,0,0,0,0,0]
[null,11,null,null,null,"M2",null,null,0,0,0,0,0,null,null,null,"قشرة تيك",null,null,null,0,0,0,0,0]
[null,12,null,null,null,"M2",null,null,0,0,0,0,0,null,null,null,"قشرة تيك",null,null,null,0,0,0,0,0]
[null,13,null,null,null,"M2",null,null,0,0,0,0,0,null,null,null,"قشرة تيك",null,null,null,0,0,0,0,0]
[null,14,null,null,null,"M2",null,null,0,0,0,0,0,null,null,null,"قشرة تيك",null,null,null,0,0,0,0,0]
[null,15,null,null,null,"M2",null,null,0,0,0,0,0,null,null,null,"قشرة تيك",null,null,null,0,0,0,0,0]
[null,{"$f":"B23+1","v":16},null,null,null,"M2",null,null,0,0,0,0,0,null,null,null,"قشرة تيك",null,null,null,0,0,0,0,0]
[null,{"$f":"B24+1","v":17},null,null,null,"M2",null,null,0,0,0,0,0,null,null,null,"قشرة تيك",null,null,null,0,0,0,0,0]
[null,18,null,null,null,"M2",null,null,0,0,0,0,0,null,null,null,"قشرة تيك",null,null,null,0,0,0,0,0]
[null,19,null,null,null,"M2",null,null,0,0,0,0,0,null,null,null,"قشرة تيك",null,null,null,0,0,0,0,0]
[null,20,null,null,null,"M2",null,null,0,0,0,0,0,null,null,null,"قشرة تيك",null,null,null,0,0,0,0,0]
[null,21,null,null,null,"M2",null,null,0,0,0,0,0,null,null,null,"قشرة تيك",null,null,null,0,0,0,0,0]
[null,22,null,null,null,"M2",null,null,0,0,0,0,0,null,null,null,"قشرة تيك",null,null,null,0,0,0,0,0]
[null,23,null,null,null,"M2",null,null,0,0,0,0,0,null,null,null,"قشرة تيك",null,null,null,0,0,0,0,0]
[null,24,null,null,null,"M2",null,null,0,0,0,0,0,null,null,null,"قشرة تيك",null,null,null,0,0,0,0,0]
[null,25,null,null,null,"M2",null,null,0,0,0,0,0,null,null,null,"قشرة تيك",null,null,null,0,0,0,0,0]
[null,26,null,null,null,"M2",null,null,0,0,0,0,0,null,null,null,"قشرة تيك",null,null,null,0,0,0,0,0]
[null,27,null,null,null,"M2",null,null,0,0,0,0,0,null,null,null,"قشرة تيك",null,null,null,0,0,0,0,0]
[null,28,null,null,null,"M2",null,null,0,0,0,0,0,null,null,null,"قشرة تيك",null,null,null,0,0,0,0,0]
[null,29,null,null,null,"M2",null,null,0,0,0,0,0,null,null,null,"قشرة تيك",null,null,null,0,0,0,0,0]
[null,30,null,null,null,"M2",null,null,0,0,0,0,0,null,null,null,"قشرة تيك",null,null,null,0,0,0,0,0]
[null,31,null,null,null,"M2",null,null,0,0,0,0,0,null,null,null,"قشرة تيك",null,null,null,0,0,0,0,0]
[null,32,null,null,null,"M2",null,null,0,0,0,0,0,null,null,null,"قشرة تيك",null,null,null,0,0,0,0,0]
[null,33,null,null,null,"M2",null,null,0,0,0,0,0,null,null,null,"قشرة تيك",null,null,null,{"$f":"T41*G41","v":0},0,0,0,0]
[null,34,null,null,null,"M2",null,null,0,0,0,0,0,null,null,null,"قشرة تيك",null,null,null,0,0,0,0,0]
[null,35,null,null,null,"M2",null,null,0,0,0,0,0,null,null,null,"قشرة تيك",null,null,null,0,0,0,0,0]
[null,36,null,null,null,"M2",null,null,0,0,0,0,0,null,null,null,"قشرة تيك",null,null,null,0,0,0,0,0]
[null,37,null,null,null,"M2",null,null,0,0,0,0,0,null,null,null,"قشرة تيك",null,null,null,0,0,0,0,0]
[null,38,null,null,null,"M2",null,null,0,0,0,0,0,null,null,null,"قشرة تيك",null,null,null,0,0,0,0,0]
[null,39,null,null,null,"M2",null,null,0,0,0,0,0,null,null,null,"قشرة تيك",null,null,null,0,0,0,0,0]
[null,40,null,null,null,"M2",null,null,0,0,0,0,0,null,null,null,"قشرة تيك",null,null,null,0,0,0,0,0]
[null,41,null,null,null,"M2",null,null,0,0,0,0,0,null,null,null,"قشرة تيك",null,null,null,0,0,0,0,0]
[null,42,null,null,null,"M2",null,null,0,0,0,0,0,null,null,null,"قشرة تيك",null,null,null,0,0,0,0,0]
[null,43,null,null,null,"M2",null,null,0,0,0,0,0,null,null,null,"قشرة تيك",null,null,null,0,0,0,0,0]
[null,44,null,null,null,"M2",null,null,0,0,0,0,0,null,null,null,"قشرة تيك",null,null,null,0,0,0,0,0]
[null,45,null,null,null,"M2",null,null,0,0,0,0,0,null,null,null,"قشرة تيك",null,null,null,0,0,0,0,0]
[null,46,null,null,null,"M2",null,null,0,0,0,0,0,null,null,null,"قشرة تيك",null,null,null,0,0,0,0,0]
[null,47,null,null,null,"M2",null,null,0,0,0,0,0,null,null,null,"قشرة تيك",null,null,null,0,0,0,0,0]
[null,48,null,null,null,"M2",null,null,0,0,0,0,0,null,null,null,"قشرة تيك",null,null,null,0,0,0,0,0]
[null,49,null,null,null,"M2",null,null,0,0,0,0,0,null,null,null,"قشرة تيك",null,null,null,0,0,0,0,0]
[null,50,null,null,null,"M2",null,null,0,0,0,0,0,null,null,null,"قشرة تيك",null,null,null,0,0,0,0,0]
[null,51,null,null,null,"M2",null,null,0,0,0,0,0,null,null,null,"قشرة تيك",null,null,null,0,0,0,0,0]
[null,52,null,null,null,"M2",null,null,0,0,0,0,0,null,null,null,"قشرة تيك",null,null,null,0,0,0,0,0]
[null,53,null,null,null,"M2",null,null,0,0,0,0,0,null,null,null,"قشرة تيك",null,null,null,0,0,0,0,0]
[null,54,null,null,null,"M2",null,null,0,0,0,0,0,null,null,null,"قشرة تيك",null,null,null,0,0,0,0,0]
[null,55,null,null,null,"M2",null,null,0,0,0,0,0,null,null,null,"قشرة تيك",null,null,null,0,0,0,0,0]
[null,56,null,null,null,"M2",null,null,0,0,0,0,0,null,null,null,"قشرة تيك",null,null,null,0,0,0,0,0]
[null,57,null,null,null,"M2",null,null,0,0,0,0,0,null,null,null,"قشرة تيك",null,null,null,0,0,0,0,0]
[null,58,null,null,null,"M2",null,null,0,0,0,0,0,null,null,null,"قشرة تيك",null,null,null,0,0,0,0,0]
[null,59,null,null,null,"M2",null,null,0,0,0,0,0,null,null,null,"قشرة تيك",null,null,null,0,0,0,0,0]
[null,60,null,null,null,"M2",null,null,0,0,0,0,0,null,null,null,"قشرة تيك",null,null,null,0,0,0,0,0]
[null,61,null,null,null,"M2",null,null,0,0,0,0,0,null,null,null,"قشرة تيك",null,null,null,0,0,0,0,0]
[null,62,null,null,null,"M2",null,null,0,0,0,0,0,null,null,null,"قشرة تيك",null,null,null,0,0,0,0,0]
[null,63,null,null,null,"M2",null,null,0,0,0,0,0,null,null,null,"قشرة تيك",null,null,null,0,0,0,0,0]
[null,64,null,null,null,"M2",null,null,0,0,0,0,0,null,null,null,"قشرة تيك",null,null,null,0,0,0,0,0]
[null,65,null,null,null,"M2",null,null,0,0,0,0,0,null,null,null,"قشرة تيك",null,null,null,{"$f":"T73*G73","v":0},0,0,0,0]

{"sheet":"TEAK-WOOD","index":4,"n_rows":74,"n_cols":28,"rows_kept":74,"cut":false,"hidden":false,"merged":[]}
[null,null,null,null,null,null,null,null,null,null,null,null,null,null,null,{"$f":"SUMIF(Q10:Q1000000,Q1,H10:H100000)","v":0},"سنديان",null,null,null,null,null,null,null,null,null,"كمية"]
[null,null,null,null,null,null,null,null,null,null,null,null,null,null,null,{"$f":"SUMIF(Q11:Q1000001,Q2,H11:H100001)","v":0},"سنديان",null,null,null,null,null,null,null,null,null,"قيمة"]
[null,null,null,null,null,null,null,null,null,null,null,null,null,null,null,{"$f":"SUMIF(Q12:Q1000002,Q3,H12:H100002)","v":0}]
[null,null,null,null,null,null,null,null,null,null,null,null,null,null,null,{"$f":"SUMIF(Q13:Q1000003,Q4,H13:H100003)","v":0}]
[]
[]
[null,null,null,null,null,null,null,{"$f":"SUM(H10:H100000)","v":7.6899999999999995},null,null,null,null,{"$f":"SUM(M10:M100000)","v":37658.039999999994},null,null,null,null,null,null,{"$f":"SUM(T10:T100000)","v":2.6870000000000003},null,null,null,null,12038.145]
[null,"الرقم التسلسلى","الحالة وارد","الحالة الصادر ","الصنف","الوحدة","السعر","الكمية","الاجمالى","الخصم","الاجمالى بعد الخصم","VAT 5%","الاجمالى","رقم الفاتورة","تاريخ الفاتورة","اسم المورد","الكود","رقم امر الاستلام","رقم اذن اصرف","الكمية الصادرة","الاجمالى","الخصم","الاجمالى بعد الخصم","VAT 5%","الاجمالى","PO","اسم المشروع","رصيد اول المدة"]
[null,1,"وارد",null,"تيك مجفف 3\"","M3",5300,4.2999999999999997E-2,{"$f":"G9*H9","v":227.89999999999998},0,{"$f":"I9-J9","v":227.89999999999998},{"$f":"K9*5%","v":11.395},{"$f":"L9+K9","v":239.29499999999999},"01-22022","2018-04-14","دار النماء","خشب شيري",42,null,null,{"$f":"T9*G9","v":0},0,{"$f":"U9-V9","v":0},{"$f":"W9*5%","v":0},{"$f":"X9+W9","v":0}]
[null,{"$f":"B9+1","v":2},null,"صرف","تيك مجفف 3\"","M3",5300,null,0,0,0,0,0,"01-22022","2018-04-14","دار النماء","خشب شيري",null,53,4.2999999999999997E-2,227.89999999999998,0,227.89999999999998,11.395,239.29499999999999,"SAM","غيانات"]
[null,{"$f":"B10+1","v":3},"وارد",null,"خشب ايروكو 2\" (خشب تيك)","M3",4250,2.6440000000000001,11237,0,11237,561.85,11798.85,2481,"2018-05-17","عالم الاخشاب","خشب شيري",184,null,null,0,0,0,0,0]
[null,4,null,"صرف","خشب ايروكو 2\" (خشب تيك)","M3",4250,null,0,0,0,0,0,57,"2018-05-17","عالم الاخشاب","خشب شيري",null,259,2.6440000000000001,11237,0,11237,561.85,11798.85,"18-283","غيانات"]
[null,5,"وارد",null,"خشب تيك عادي اروكو 2\"","M3",4500,2.645,11902.5,0,11902.5,595.125,12497.625,"01-27537","2018-09-04","دار النماء","خشب شيري",221,null,null,0,0,0,0,0]
[null,6,null,"صرف","خشب تيك عادي اروكو 2\"","M3",4500,null,0,0,0,0,0,"01-27537","2018-09-04","دار النماء","خشب شيري",null,null,null,0,0,0,0,0]
[null,7,"وارد",null,"خشب تيك 2\"","M3",5300,2.4009999999999998,12725.3,0,12725.3,636.26499999999999,13361.564999999999,"INC-30652521","2018-09-11","شركة مدار لمواد البناء","خشب شيري",null,null,null,0,0,0,0,0]
[null,8,null,"صرف","خشب تيك 2\"","M3",5300,null,0,0,0,0,0,"INC-30652521","2018-09-11","شركة مدار لمواد البناء","خشب شيري",null,null,null,0,0,0,0,0]
[null,9,null,null,null,"M3",null,null,0,0,0,0,0,null,null,null,"خشب شيري",null,null,null,0,0,0,0,0]
[null,10,null,null,null,"M3",null,null,0,0,0,0,0,null,null,null,"خشب شيري",null,null,null,0,0,0,0,0]
[null,11,null,null,null,"M3",null,null,0,0,0,0,0,null,null,null,"خشب شيري",null,null,null,0,0,0,0,0]
[null,12,null,null,null,"M3",null,null,0,0,0,0,0,null,null,null,"خشب شيري",null,null,null,0,0,0,0,0]
[null,13,null,null,null,"M3",null,null,0,0,0,0,0,null,null,null,"خشب شيري",null,null,null,0,0,0,0,0]
[null,14,null,null,null,"M3",null,null,0,0,0,0,0,null,null,null,"خشب شيري",null,null,null,0,0,0,0,0]
[null,15,null,null,null,"M3",null,null,0,0,0,0,0,null,null,null,"خشب شيري",null,null,null,0,0,0,0,0]
[null,{"$f":"B23+1","v":16},null,null,null,"M3",null,null,0,0,0,0,0,null,null,null,"خشب شيري",null,null,null,0,0,0,0,0]
[null,{"$f":"B24+1","v":17},null,null,null,"M3",null,null,0,0,0,0,0,null,null,null,"خشب شيري",null,null,null,0,0,0,0,0]
[null,18,null,null,null,"M3",null,null,0,0,0,0,0,null,null,null,"خشب شيري",null,null,null,0,0,0,0,0]
[null,19,null,null,null,"M3",null,null,0,0,0,0,0,null,null,null,"خشب شيري",null,null,null,0,0,0,0,0]
[null,20,null,null,null,"M3",null,null,0,0,0,0,0,null,null,null,"خشب شيري",null,null,null,0,0,0,0,0]
[null,21,null,null,null,"M3",null,null,0,0,0,0,0,null,null,null,"خشب شيري",null,null,null,0,0,0,0,0]
[null,22,null,null,null,"M3",null,null,0,0,0,0,0,null,null,null,"خشب شيري",null,null,null,0,0,0,0,0]
[null,23,null,null,null,"M3",null,null,0,0,0,0,0,null,null,null,"خشب شيري",null,null,null,0,0,0,0,0]
[null,24,null,null,null,"M3",null,null,0,0,0,0,0,null,null,null,"خشب شيري",null,null,null,0,0,0,0,0]
[null,25,null,null,null,"M3",null,null,0,0,0,0,0,null,null,null,"خشب شيري",null,null,null,0,0,0,0,0]
[null,26,null,null,null,"M3",null,null,0,0,0,0,0,null,null,null,"خشب شيري",null,null,null,0,0,0,0,0]
[null,27,null,null,null,"M3",null,null,0,0,0,0,0,null,null,null,"خشب شيري",null,null,null,0,0,0,0,0]
[null,28,null,null,null,"M3",null,null,0,0,0,0,0,null,null,null,"خشب شيري",null,null,null,0,0,0,0,0]
[null,29,null,null,null,"M3",null,null,0,0,0,0,0,null,null,null,"خشب شيري",null,null,null,0,0,0,0,0]
[null,30,null,null,null,"M3",null,null,0,0,0,0,0,null,null,null,"خشب شيري",null,null,null,0,0,0,0,0]
[null,31,null,null,null,"M3",null,null,0,0,0,0,0,null,null,null,"خشب شيري",null,null,null,0,0,0,0,0]
[null,32,null,null,null,"M3",null,null,0,0,0,0,0,null,null,null,"خشب شيري",null,null,null,0,0,0,0,0]
[null,33,null,null,null,"M3",null,null,0,0,0,0,0,null,null,null,"خشب شيري",null,null,null,0,0,0,0,0]
[null,34,null,null,null,"M3",null,null,0,0,0,0,0,null,null,null,"خشب شيري",null,null,null,0,0,0,0,0]
[null,35,null,null,null,"M3",null,null,0,0,0,0,0,null,null,null,"خشب شيري",null,null,null,0,0,0,0,0]
[null,36,null,null,null,"M3",null,null,0,0,0,0,0,null,null,null,"خشب شيري",null,null,null,0,0,0,0,0]
[null,37,null,null,null,"M3",null,null,0,0,0,0,0,null,null,null,"خشب شيري",null,null,null,0,0,0,0,0]
[null,38,null,null,null,"M3",null,null,0,0,0,0,0,null,null,null,"خشب شيري",null,null,null,0,0,0,0,0]
[null,39,null,null,null,"M3",null,null,0,0,0,0,0,null,null,null,"خشب شيري",null,null,null,0,0,0,0,0]
[null,40,null,null,null,"M3",null,null,0,0,0,0,0,null,null,null,"خشب شيري",null,null,null,0,0,0,0,0]
[null,41,null,null,null,"M3",null,null,0,0,0,0,0,null,null,null,"خشب شيري",null,null,null,0,0,0,0,0]
[null,42,null,null,null,"M3",null,null,0,0,0,0,0,null,null,null,"خشب شيري",null,null,null,0,0,0,0,0]
[null,43,null,null,null,"M3",null,null,0,0,0,0,0,null,null,null,"خشب شيري",null,null,null,0,0,0,0,0]
[null,44,null,null,null,"M3",null,null,0,0,0,0,0,null,null,null,"خشب شيري",null,null,null,0,0,0,0,0]
[null,45,null,null,null,"M3",null,null,0,0,0,0,0,null,null,null,"خشب شيري",null,null,null,0,0,0,0,0]
[null,46,null,null,null,"M3",null,null,0,0,0,0,0,null,null,null,"خشب شيري",null,null,null,0,0,0,0,0]
[null,47,null,null,null,"M3",null,null,0,0,0,0,0,null,null,null,"خشب شيري",null,null,null,0,0,0,0,0]
[null,48,null,null,null,"M3",null,null,0,0,0,0,0,null,null,null,"خشب شيري",null,null,null,0,0,0,0,0]
[null,49,null,null,null,"M3",null,null,0,0,0,0,0,null,null,null,"خشب شيري",null,null,null,0,0,0,0,0]
[null,50,null,null,null,"M3",null,null,0,0,0,0,0,null,null,null,"خشب شيري",null,null,null,0,0,0,0,0]
[null,51,null,null,null,"M3",null,null,0,0,0,0,0,null,null,null,"خشب شيري",null,null,null,0,0,0,0,0]
[null,52,null,null,null,"M3",null,null,0,0,0,0,0,null,null,null,"خشب شيري",null,null,null,0,0,0,0,0]
[null,53,null,null,null,"M3",null,null,0,0,0,0,0,null,null,null,"خشب شيري",null,null,null,0,0,0,0,0]
[null,54,null,null,null,"M3",null,null,0,0,0,0,0,null,null,null,"خشب شيري",null,null,null,0,0,0,0,0]
[null,55,null,null,null,"M3",null,null,0,0,0,0,0,null,null,null,"خشب شيري",null,null,null,0,0,0,0,0]
[null,56,null,null,null,"M3",null,null,0,0,0,0,0,null,null,null,"خشب شيري",null,null,null,0,0,0,0,0]
[null,57,null,null,null,"M3",null,null,0,0,0,0,0,null,null,null,"خشب شيري",null,null,null,0,0,0,0,0]
[null,58,null,null,null,"M3",null,null,0,0,0,0,0,null,null,null,"خشب شيري",null,null,null,0,0,0,0,0]
[null,59,null,null,null,"M3",null,null,0,0,0,0,0,null,null,null,"خشب شيري",null,null,null,0,0,0,0,0]
[null,60,null,null,null,"M3",null,null,0,0,0,0,0,null,null,null,"خشب شيري",null,null,null,0,0,0,0,0]
[null,61,null,null,null,"M3",null,null,0,0,0,0,0,null,null,null,"خشب شيري",null,null,null,0,0,0,0,0]
[null,62,null,null,null,"M3",null,null,0,0,0,0,0,null,null,null,"خشب شيري",null,null,null,0,0,0,0,0]
[null,63,null,null,null,"M3",null,null,0,0,0,0,0,null,null,null,"خشب شيري",null,null,null,0,0,0,0,0]
[null,64,null,null,null,"M3",null,null,0,0,0,0,0,null,null,null,"خشب شيري",null,null,null,0,0,0,0,0]
[null,65,null,null,null,"M3",null,null,{"$f":"G73*H73","v":0},0,{"$f":"I73-J73","v":0},{"$f":"K73*5%","v":0},{"$f":"L73+K73","v":0},null,null,null,"خشب شيري",null,null,null,{"$f":"T73*G73","v":0},0,{"$f":"U73-V73","v":0},{"$f":"W73*5%","v":0},{"$f":"X73+W73","v":0}]
[null,66,null,null,null,"M3",null,null,{"$f":"G74*H74","v":0},0,{"$f":"I74-J74","v":0},{"$f":"K74*5%","v":0},{"$f":"L74+K74","v":0},null,null,null,"خشب شيري",null,null,null,{"$f":"T74*G74","v":0},0,{"$f":"U74-V74","v":0},{"$f":"W74*5%","v":0},{"$f":"X74+W74","v":0}]

{"sheet":"Cherry-Veneer","index":5,"n_rows":73,"n_cols":28,"rows_kept":73,"cut":false,"hidden":false,"merged":[]}
[null,null,null,null,null,null,null,null,null,null,null,null,null,null,null,{"$f":"SUMIF(Q9:Q999999,Q1,H9:H99999)","v":0},"سنديان",null,null,null,null,null,null,null,null,null,"كمية"]
[null,null,null,null,null,null,null,null,null,null,null,null,null,null,null,{"$f":"SUMIF(Q10:Q1000000,Q2,H10:H100000)","v":0},"سنديان",null,null,null,null,null,null,null,null,null,"قيمة"]
[null,null,null,null,null,null,null,null,null,null,null,null,null,null,null,{"$f":"SUMIF(Q11:Q1000001,Q3,H11:H100001)","v":0}]
[null,null,null,null,null,null,null,null,null,null,null,null,null,null,null,{"$f":"SUMIF(Q12:Q1000002,Q4,H12:H100002)","v":0}]
[]
[]
[null,null,null,null,null,null,null,{"$f":"SUM(H9:H99999)","v":239.45},null,null,null,null,{"$f":"SUM(M9:M99999)","v":3771.3375000000001},null,null,null,null,null,null,{"$f":"SUM(T9:T99999)","v":239.45},null,null,null,null,3771.3375000000001]
[null,"الرقم التسلسلى","الحالة وارد","الحالة الصادر ","الصنف","الوحدة","السعر","الكمية","الاجمالى","الخصم","الاجمالى بعد الخصم","VAT 5%","الاجمالى","رقم الفاتورة","تاريخ الفاتورة","اسم المورد","الكود","رقم امر الاستلام","رقم اذن اصرف","الكمية الصادرة","الاجمالى","الخصم","الاجمالى بعد الخصم","VAT 5%","الاجمالى","PO","اسم المشروع","ملاحظات"]
[null,1,"وارد",null,"قشرة شري مفجر","M2",15,239.45,{"$f":"G9*H9","v":3591.75},0,{"$f":"I9-J9","v":3591.75},{"$f":"K9*5%","v":179.58750000000001},{"$f":"L9+K9","v":3771.3375000000001},95,"2018-03-26","دار الوفاق","قشرة شري",8,null,null,{"$f":"T9*G9","v":0},0,{"$f":"U9-V9","v":0},{"$f":"W9*5%","v":0},{"$f":"X9+W9","v":0}]
[null,{"$f":"B9+1","v":2},null,"صرف","قشرة شري مفجر","M2",15,null,{"$f":"G10*H10","v":0},0,{"$f":"I10-J10","v":0},{"$f":"K10*5%","v":0},{"$f":"L10+K10","v":0},57,"2018-03-26","دار الوفاق","قشرة شري",null,8,239.45,{"$f":"T10*G10","v":3591.75},0,{"$f":"U10-V10","v":3591.75},{"$f":"W10*5%","v":179.58750000000001},{"$f":"X10+W10","v":3771.3375000000001},"18-092","الرازيات"]
[null,{"$f":"B10+1","v":3},"وارد",null,null,"M2",null,null,0,0,0,0,0,null,null,null,"قشرة شري",null,null,null,0,0,0,0,0]
[null,4,null,null,null,"M2",null,null,0,0,0,0,0,null,null,null,"قشرة شري",null,null,null,0,0,0,0,0]
[null,5,null,null,null,"M2",null,null,0,0,0,0,0,null,null,null,"قشرة شري",null,null,null,0,0,0,0,0]
[null,6,null,null,null,"M2",null,null,0,0,0,0,0,null,null,null,"قشرة شري",null,null,null,0,0,0,0,0]
[null,7,null,null,null,"M2",null,null,0,0,0,0,0,null,null,null,"قشرة شري",null,null,null,0,0,0,0,0]
[null,8,null,null,null,"M2",null,null,0,0,0,0,0,null,null,null,"قشرة شري",null,null,null,0,0,0,0,0]
[null,9,null,null,null,"M2",null,null,0,0,0,0,0,null,null,null,"قشرة شري",null,null,null,0,0,0,0,0]
[null,10,null,null,null,"M2",null,null,0,0,0,0,0,null,null,null,"قشرة شري",null,null,null,0,0,0,0,0]
[null,11,null,null,null,"M2",null,null,0,0,0,0,0,null,null,null,null,null,null,null,0,0,0,0,0]
[null,12,null,null,null,null,null,null,0,0,0,0,0,null,null,null,null,null,null,null,0,0,0,0,0]
[null,13,null,null,null,null,null,null,0,0,0,0,0,null,null,null,null,null,null,null,0,0,0,0,0]
[null,14,null,null,null,null,null,null,0,0,0,0,0,null,null,null,null,null,null,null,0,0,0,0,0]
[null,15,null,null,null,null,null,null,0,0,0,0,0,null,null,null,null,null,null,null,0,0,0,0,0]
[null,{"$f":"B23+1","v":16},null,null,null,null,null,null,0,0,0,0,0,null,null,null,null,null,null,null,0,0,0,0,0]
[null,{"$f":"B24+1","v":17},null,null,null,null,null,null,0,0,0,0,0,null,null,null,null,null,null,null,0,0,0,0,0]
[null,18,null,null,null,null,null,null,0,0,0,0,0,null,null,null,null,null,null,null,0,0,0,0,0]
[null,19,null,null,null,null,null,null,0,0,0,0,0,null,null,null,null,null,null,null,0,0,0,0,0]
[null,20,null,null,null,null,null,null,0,0,0,0,0,null,null,null,null,null,null,null,0,0,0,0,0]
[null,21,null,null,null,null,null,null,0,0,0,0,0,null,null,null,null,null,null,null,0,0,0,0,0]
[null,22,null,null,null,null,null,null,0,0,0,0,0,null,null,null,null,null,null,null,0,0,0,0,0]
[null,23,null,null,null,null,null,null,0,0,0,0,0,null,null,null,null,null,null,null,0,0,0,0,0]
[null,24,null,null,null,null,null,null,0,0,0,0,0,null,null,null,null,null,null,null,0,0,0,0,0]
[null,25,null,null,null,null,null,null,0,0,0,0,0,null,null,null,null,null,null,null,0,0,0,0,0]
[null,26,null,null,null,null,null,null,0,0,0,0,0,null,null,null,null,null,null,null,0,0,0,0,0]
[null,27,null,null,null,null,null,null,0,0,0,0,0,null,null,null,null,null,null,null,0,0,0,0,0]
[null,28,null,null,null,null,null,null,0,0,0,0,0,null,null,null,null,null,null,null,0,0,0,0,0]
[null,29,null,null,null,null,null,null,0,0,0,0,0,null,null,null,null,null,null,null,0,0,0,0,0]
[null,30,null,null,null,null,null,null,0,0,0,0,0,null,null,null,null,null,null,null,0,0,0,0,0]
[null,31,null,null,null,null,null,null,0,0,0,0,0,null,null,null,null,null,null,null,0,0,0,0,0]
[null,32,null,null,null,null,null,null,0,0,0,0,0,null,null,null,null,null,null,null,0,0,0,0,0]
[null,33,null,null,null,null,null,null,0,0,0,0,0,null,null,null,null,null,null,null,0,0,0,0,0]
[null,34,null,null,null,null,null,null,0,0,0,0,0,null,null,null,null,null,null,null,0,0,0,0,0]
[null,35,null,null,null,null,null,null,0,0,0,0,0,null,null,null,null,null,null,null,0,0,0,0,0]
[null,36,null,null,null,null,null,null,0,0,0,0,0,null,null,null,null,null,null,null,0,0,0,0,0]
[null,37,null,null,null,null,null,null,0,0,0,0,0,null,null,null,null,null,null,null,0,0,0,0,0]
[null,38,null,null,null,null,null,null,0,0,0,0,0,null,null,null,null,null,null,null,0,0,0,0,0]
[null,39,null,null,null,null,null,null,0,0,0,0,0,null,null,null,null,null,null,null,0,0,0,0,0]
[null,40,null,null,null,null,null,null,0,0,0,0,0,null,null,null,null,null,null,null,0,0,0,0,0]
[null,41,null,null,null,null,null,null,0,0,0,0,0,null,null,null,null,null,null,null,0,0,0,0,0]
[null,42,null,null,null,null,null,null,0,0,0,0,0,null,null,null,null,null,null,null,0,0,0,0,0]
[null,43,null,null,null,null,null,null,0,0,0,0,0,null,null,null,null,null,null,null,0,0,0,0,0]
[null,44,null,null,null,null,null,null,0,0,0,0,0,null,null,null,null,null,null,null,0,0,0,0,0]
[null,45,null,null,null,null,null,null,0,0,0,0,0,null,null,null,null,null,null,null,0,0,0,0,0]
[null,46,null,null,null,null,null,null,0,0,0,0,0,null,null,null,null,null,null,null,0,0,0,0,0]
[null,47,null,null,null,null,null,null,0,0,0,0,0,null,null,null,null,null,null,null,0,0,0,0,0]
[null,48,null,null,null,null,null,null,0,0,0,0,0,null,null,null,null,null,null,null,0,0,0,0,0]
[null,49,null,null,null,null,null,null,0,0,0,0,0,null,null,null,null,null,null,null,0,0,0,0,0]
[null,50,null,null,null,null,null,null,0,0,0,0,0,null,null,null,null,null,null,null,0,0,0,0,0]
[null,51,null,null,null,null,null,null,0,0,0,0,0,null,null,null,null,null,null,null,0,0,0,0,0]
[null,52,null,null,null,null,null,null,0,0,0,0,0,null,null,null,null,null,null,null,0,0,0,0,0]
[null,53,null,null,null,null,null,null,0,0,0,0,0,null,null,null,null,null,null,null,0,0,0,0,0]
[null,54,null,null,null,null,null,null,0,0,0,0,0,null,null,null,null,null,null,null,0,0,0,0,0]
[null,55,null,null,null,null,null,null,0,0,0,0,0,null,null,null,null,null,null,null,0,0,0,0,0]
[null,56,null,null,null,null,null,null,0,0,0,0,0,null,null,null,null,null,null,null,0,0,0,0,0]
[null,57,null,null,null,null,null,null,0,0,0,0,0,null,null,null,null,null,null,null,0,0,0,0,0]
[null,58,null,null,null,null,null,null,0,0,0,0,0,null,null,null,null,null,null,null,0,0,0,0,0]
[null,59,null,null,null,null,null,null,0,0,0,0,0,null,null,null,null,null,null,null,0,0,0,0,0]
[null,60,null,null,null,null,null,null,0,0,0,0,0,null,null,null,null,null,null,null,0,0,0,0,0]
[null,61,null,null,null,null,null,null,0,0,0,0,0,null,null,null,null,null,null,null,0,0,0,0,0]
[null,62,null,null,null,null,null,null,0,0,0,0,0,null,null,null,null,null,null,null,0,0,0,0,0]
[null,63,null,null,null,null,null,null,0,0,0,0,0,null,null,null,null,null,null,null,0,0,0,0,0]
[null,64,null,null,null,null,null,null,0,0,0,0,0,null,null,null,null,null,null,null,0,0,0,0,0]
[null,65,null,null,null,null,null,null,0,0,0,0,0,null,null,null,null,null,null,null,0,0,0,0,0]

{"sheet":"MAHOGANY-WOOD","index":6,"n_rows":75,"n_cols":29,"rows_kept":75,"cut":false,"hidden":false,"merged":[]}
[null,null,null,null,null,null,null,null,null,null,null,null,null,null,null,{"$f":"SUMIF(Q11:Q1000001,Q1,H11:H100001)","v":0},"سنديان",null,null,null,null,null,null,null,null,null,"كمية"]
[null,null,null,null,null,null,null,null,null,null,null,null,null,null,null,{"$f":"SUMIF(Q12:Q1000002,Q2,H12:H100002)","v":0},"سنديان",null,null,null,null,null,null,null,null,null,"قيمة"]
[null,null,null,null,null,null,null,null,null,null,null,null,null,null,null,{"$f":"SUMIF(Q13:Q1000003,Q3,H13:H100003)","v":0}]
[null,null,null,null,null,null,null,null,null,null,null,null,null,null,null,{"$f":"SUMIF(Q14:Q1000004,Q4,H14:H100004)","v":0}]
[]
[null,null,null,null,null,null,null,null,null,null,null,null,null,null,null,null,null,null,null,null,null,null,null,null,null,null,null,"قشاط","تهوية"]
[null,null,null,null,null,null,null,{"$f":"SUM(H11:H100001)","v":0},null,null,null,null,{"$f":"SUM(M11:M100001)","v":0},null,null,null,null,null,null,{"$f":"SUM(T11:T100001)","v":26.578999999999997},null,null,null,null,57376.934999999998,null,{"$f":"H7-T7","v":-26.578999999999997},{"$f":"2.4*0.05*0.25/12*3","v":7.4999999999999997E-3},{"$f":"2.4*0.05*0.25/12*4","v":0.01}]
[null,"الرقم التسلسلى","الحالة وارد","الحالة الصادر ","الصنف","الوحدة","السعر","الكمية","الاجمالى","الخصم","الاجمالى بعد الخصم","VAT 5%","الاجمالى","رقم الفاتورة","تاريخ الفاتورة","اسم المورد","الكود","رقم امر الاستلام","رقم اذن اصرف","الكمية الصادرة","الاجمالى","الخصم","الاجمالى بعد الخصم","VAT 5%","الاجمالى","PO","اسم المشروع","ملاحظات"]
[null,1,null,"صرف","خشب ماهوجني","M3",3300,null,{"$f":"G9*H9","v":0},0,{"$f":"I9-J9","v":0},{"$f":"K9*5%","v":0},{"$f":"L9+K9","v":0},null,null,null,"ماهوجني",null,null,0.22,{"$f":"T9*G9","v":726},0,{"$f":"U9-V9","v":726},{"$f":"W9*5%","v":36.300000000000004},{"$f":"X9+W9","v":762.3},null,"ابو وليد"]
[null,{"$f":"B9+1","v":2},"وارد",null,"مهوجني افريقي كسيبو 2\" كاميرونى","M3",2550,9.0609999999999999,23105.55,0,23105.55,1155.2774999999999,24260.827499999999,57,"2018-03-22","شركة مدار لمواد البناء","ماهوجني",112,null,null,0,0,0,0,0]
[null,null,null,null,null,null,null,0,null,null,null,null,0,null,null,null,null,null,null,8,0,0,0,0,0,"18-062"," JAZIRAH"]
[null,1,null,"صرف","خشب ماهوجني","M3",3300,null,0,0,0,0,0,null,null,null,"ماهوجني",null,null,1.0609999999999999,3501.2999999999997,0,3501.2999999999997,175.065,3676.3649999999998,"17-180","ADVANCE"]
[null,null,null,null,null,null,null,0,null,null,null,null,0,null,null,null,null,null,null,null,0,0,0,0,0]
[null,1,null,"صرف","خشب ماهوجني","M3",3300,null,0,0,0,0,0,null,null,null,"ماهوجني",null,null,3.411,11256.3,0,11256.3,562.81499999999994,11819.115,"18-104","مشروع اليامي"]
[null,null,null,null,null,null,null,0,null,null,null,null,0,null,null,null,null,null,null,null,0,0,0,0,0]
[null,1,null,"صرف","خشب ماهوجني","M3",3300,null,0,0,0,0,0,null,null,null,"ماهوجني",null,null,4.4829999999999997,14793.9,0,14793.9,739.69500000000005,15533.594999999999,"18-035","QOUMA"]
[null,null,null,null,null,null,null,0,null,null,null,null,0,null,null,null,null,null,null,0.21,0,0,0,0,0,"منجرة","خالد نمور"]
[null,1,null,"صرف","خشب ماهوجني","M3",3300,null,0,0,0,0,0,null,null,null,"ماهوجني",null,null,0.185,610.5,0,610.5,30.525000000000002,641.02499999999998,"منجرة","خالد نمور"]
[null,null,null,null,null,null,null,0,null,null,null,null,0,null,null,null,null,null,null,null,0,0,0,0,0]
[null,1,null,"صرف","خشب ماهوجني","M3",3300,null,0,0,0,0,0,null,null,null,"ماهوجني",null,null,2.0939999999999999,6910.2,0,6910.2,345.51,7255.71,"17-180","اصلاح حلوق مشروع ادفنس"]
[null,null,null,null,null,null,null,0,null,null,null,null,0,null,null,null,null,null,null,null,0,0,0,0,0]
[null,1,null,"صرف","خشب ماهوجني","M3",3300,null,0,0,0,0,0,null,null,null,"ماهوجني",null,null,3.81,12573,0,12573,628.65000000000009,13201.65,"18-282","الحجز الصحي"]
[null,null,null,null,null,null,null,0,null,null,null,null,0,null,null,null,null,null,null,0.7,0,0,0,0,0,"18-276","سعودي "]
[null,1,null,"صرف","خشب ماهوجني","M3",3300,null,0,0,0,0,0,null,null,null,"ماهوجني",null,null,0.25,825,0,825,41.25,866.25,"18-338"," JAZIRAH"]
[null,null,null,null,null,null,null,0,null,null,null,null,0,null,null,null,null,null,null,1.1100000000000001,0,0,0,0,0,"18-209","ADVANCE"]
[null,1,null,"صرف","خشب ماهوجني","M3",3300,null,0,0,0,0,0,null,null,null,"ماهوجني",null,null,1.2649999999999999,4174.5,0,4174.5,208.72500000000002,4383.2250000000004,"17-180","ADVANCE"]
[null,null,null,null,null,null,null,0,null,null,null,null,0,null,null,null,null,null,null,null,0,0,0,0,0]
[null,1,null,"صرف","خشب ماهوجني","M3",3300,null,0,0,0,0,0,null,null,null,"ماهوجني",null,null,null,0,0,0,0,0]
[null,null,null,null,null,null,null,0,null,null,null,null,0,null,null,null,null,null,null,null,0,0,0,0,0]
[null,null,null,null,null,null,null,null,null,null,null,null,0,null,null,null,"ماهوجني",null,null,null,0,0,0,0,0]
[null,null,null,null,null,null,null,null,null,null,null,null,0,null,null,null,"ماهوجني",null,null,null,0,0,0,0,0]
[null,null,null,null,null,null,null,null,null,null,null,null,0,null,null,null,"ماهوجني",null,null,null,0,0,0,0,0]
[null,null,null,null,null,null,null,null,null,null,null,null,0,null,null,null,"ماهوجني",null,null,null,0,0,0,0,0]
[null,null,null,null,null,null,null,null,null,null,null,null,0,null,null,null,"ماهوجني",null,null,null,0,0,0,0,0]
[null,null,null,null,null,null,null,null,null,null,null,null,0,null,null,null,"ماهوجني",null,null,null,0,0,0,0,0]
[null,null,null,null,null,null,null,null,null,null,null,null,0,null,null,null,"ماهوجني",null,null,null,0,0,0,0,0]
[null,null,null,null,null,null,null,null,null,null,null,null,0,null,null,null,"ماهوجني",null,null,null,0,0,0,0,0]
[null,null,null,null,null,null,null,null,null,null,null,null,0,null,null,null,"ماهوجني",null,null,null,0,0,0,0,0]
[null,null,null,null,null,null,null,null,null,null,null,null,0,null,null,null,"ماهوجني",null,null,null,0,0,0,0,0]
[null,null,null,null,null,null,null,null,null,null,null,null,0,null,null,null,"ماهوجني",null,null,null,0,0,0,0,0]
[null,null,null,null,null,null,null,null,null,null,null,null,0,null,null,null,"ماهوجني",null,null,null,0,0,0,0,0]
[null,null,null,null,null,null,null,null,null,null,null,null,0,null,null,null,"ماهوجني",null,null,null,0,0,0,0,0]
[null,null,null,null,null,null,null,null,null,null,null,null,0,null,null,null,"ماهوجني",null,null,null,0,0,0,0,0]
[null,null,null,null,null,null,null,null,null,null,null,null,0,null,null,null,"ماهوجني",null,null,null,0,0,0,0,0]
[null,null,null,null,null,null,null,null,null,null,null,null,0,null,null,null,"ماهوجني",null,null,null,0,0,0,0,0]
[null,null,null,null,null,null,null,null,null,null,null,null,0,null,null,null,"ماهوجني",null,null,null,0,0,0,0,0]
[null,null,null,null,null,null,null,null,null,null,null,null,0,null,null,null,"ماهوجني",null,null,null,0,0,0,0,0]
[null,null,null,null,null,null,null,null,null,null,null,null,0,null,null,null,"ماهوجني",null,null,null,0,0,0,0,0]
[null,null,null,null,null,null,null,null,null,null,null,null,0,null,null,null,"ماهوجني",null,null,null,0,0,0,0,0]
[null,null,null,null,null,null,null,null,null,null,null,null,0,null,null,null,"ماهوجني",null,null,null,0,0,0,0,0]
[null,null,null,null,null,null,null,null,null,null,null,null,0,null,null,null,"ماهوجني",null,null,null,0,0,0,0,0]
[null,null,null,null,null,null,null,null,null,null,null,null,0,null,null,null,"ماهوجني",null,null,null,0,0,0,0,0]
[null,null,null,null,null,null,null,null,null,null,null,null,0,null,null,null,"ماهوجني",null,null,null,0,0,0,0,0]
[null,null,null,null,null,null,null,null,null,null,null,null,0,null,null,null,"ماهوجني",null,null,null,0,0,0,0,0]
[null,null,null,null,null,null,null,null,null,null,null,null,0,null,null,null,"ماهوجني",null,null,null,0,0,0,0,0]
[null,null,null,null,null,null,null,null,null,null,null,null,0,null,null,null,"ماهوجني",null,null,null,0,0,0,0,0]
[null,null,null,null,null,null,null,null,null,null,null,null,0,null,null,null,"ماهوجني",null,null,null,0,0,0,0,0]
[null,null,null,null,null,null,null,null,null,null,null,null,0,null,null,null,"ماهوجني",null,null,null,0,0,0,0,0]
[null,null,null,null,null,null,null,null,null,null,null,null,0,null,null,null,"ماهوجني",null,null,null,0,0,0,0,0]
[null,null,null,null,null,null,null,null,null,null,null,null,0,null,null,null,"ماهوجني",null,null,null,0,0,0,0,0]
[null,null,null,null,null,null,null,null,null,null,null,null,0,null,null,null,"ماهوجني",null,null,null,0,0,0,0,0]
[null,null,null,null,null,null,null,null,null,null,null,null,0,null,null,null,"ماهوجني",null,null,null,0,0,0,0,0]
[null,null,null,null,null,null,null,null,null,null,null,null,0,null,null,null,"ماهوجني",null,null,null,0,0,0,0,0]
[null,null,null,null,null,null,null,null,null,null,null,null,0,null,null,null,"ماهوجني",null,null,null,0,0,0,0,0]
[null,null,null,null,null,null,null,null,null,null,null,null,0,null,null,null,"ماهوجني",null,null,null,0,0,0,0,0]
[null,null,null,null,null,null,null,null,null,null,null,null,0,null,null,null,"ماهوجني",null,null,null,0,0,0,0,0]
[null,null,null,null,null,null,null,null,null,null,null,null,0,null,null,null,"ماهوجني",null,null,null,0,0,0,0,0]
[null,null,null,null,null,null,null,null,null,null,null,null,0,null,null,null,"ماهوجني",null,null,null,0,0,0,0,0]
[null,null,null,null,null,null,null,null,null,null,null,null,0,null,null,null,"ماهوجني",null,null,null,0,0,0,0,0]
[null,null,null,null,null,null,null,null,null,null,null,null,0,null,null,null,"ماهوجني",null,null,null,0,0,0,0,0]
[null,null,null,null,null,null,null,null,null,null,null,null,0,null,null,null,"ماهوجني",null,null,null,0,0,0,0,0]
[null,null,null,null,null,null,null,null,null,null,null,null,0,null,null,null,"ماهوجني",null,null,null,0,0,0,0,0]
[null,null,null,null,null,null,null,null,null,null,null,null,{"$f":"L73+K73","v":0},null,null,null,"ماهوجني",null,null,null,{"$f":"T73*G73","v":0},0,{"$f":"U73-V73","v":0},{"$f":"W73*5%","v":0},{"$f":"X73+W73","v":0}]
[null,null,null,null,null,null,null,null,null,null,null,null,{"$f":"L74+K74","v":0},null,null,null,"ماهوجني",null,null,null,{"$f":"T74*G74","v":0},0,{"$f":"U74-V74","v":0},{"$f":"W74*5%","v":0},{"$f":"X74+W74","v":0}]
[null,null,null,null,null,null,null,null,null,null,null,null,0,null,null,null,"ماهوجني",null,null,null,0,0,0,0,0]